fUSD/lending_fUSD_20240414
["ID","MTS","AMOUNT","RATE_DAILY","PERIOD"]
[322571083,1713076245527,-150.0,0.00029968,2]
[322571084,1713076245537,-150.0,0.00029969,2]
[322571086,1713076245546,-150.0,0.0002997,2]
[322571087,1713076245555,-150.0,0.00029971,2]
[322571089,1713076245565,-150.0,0.00029971,2]
[322571090,1713076245574,-150.0,0.00029983,2]
[322571092,1713076245583,-150.0,0.00029983,2]
[322571093,1713076245593,-150.0,0.00029987,2]
[322571095,1713076245602,-150.0,0.0002999,2]
[322571096,1713076245611,-385.9074976,0.00029992,2]
[322571098,1713076245619,-5531.4919693,0.00029992,2]
[322571100,1713076245628,-13287.1119911,0.00029992,2]
[322571101,1713076245638,-150.0,0.00029995,2]
[322571103,1713076245647,-372.62471018,0.00029997,2]
[322571104,1713076245656,-150.0,0.00029997,2]
[322571106,1713076245669,-1594.0935189,0.00029998,2]
[322571107,1713076245679,-150.0,0.00029998,2]
[322571109,1713076245689,-206.89270915,0.00029999,2]
[322571110,1713076245698,-5835.31046315,0.00029999,2]
[322571112,1713076245707,-205.72513863,0.0003,3]
[322571113,1713076245717,-6945.86910959,0.0003,2]
[322571115,1713076245726,-420.91017053,0.0003,2]
[322571117,1713076245735,-5052.54487736,0.0003,3]
[322571186,1713076246571,-153.86533857,0.00020899,2]
[322571188,1713076246581,-452.53764161,0.00022,2]
[322571190,1713076246593,-215.08704248,0.00022,2]
[322571192,1713076246602,-667.62468409,0.00022,2]
[322571194,1713076246612,-667.62468409,0.00022,2]
[322571196,1713076246621,-667.62468409,0.00022,2]
[322571198,1713076246630,-667.62468409,0.00022,2]
[322571200,1713076246640,-667.62468409,0.00022,2]
[322571202,1713076246650,-667.62468409,0.00022,2]
[322571204,1713076246659,-667.62468409,0.00022,2]
[322571206,1713076246670,-430.626,0.00025548,2]
[322571208,1713076246681,-150.91,0.00029,2]
[322571210,1713076246691,-150.91,0.00029,2]
[322571212,1713076246701,-150.91,0.00029,2]
[322571214,1713076246711,-150.91,0.00029,2]
[322571216,1713076246720,-150.91,0.00029,2]
[322571218,1713076246730,-150.91,0.00029,2]
[322571220,1713076246739,-150.91,0.00029,2]
[322571222,1713076246750,-150.91,0.00029,2]
[322571224,1713076246759,-3819.33729857,0.0003,3]
[322571226,1713076246771,-1401.0661689,0.0003,3]
[322571228,1713076246780,-4915.1859606,0.0003,2]
[322571250,1713076246993,-361.17056686,0.00022,2]
[322571283,1713076247349,-306.45411723,0.00022,2]
[322571285,1713076247360,-667.62468409,0.00022,2]
[322571287,1713076247370,-667.62468409,0.00022,2]
[322571289,1713076247379,-667.62468409,0.00022,2]
[322571291,1713076247388,-440.1348504,0.00022,2]
[322571293,1713076247403,-227.48983369,0.00022,2]
[322571317,1713076247617,-667.62468409,0.00022,2]
[322571319,1713076247627,-667.62468409,0.00022,2]
[322571321,1713076247637,-667.62468409,0.00022,2]
[322571323,1713076247646,-392.09240394,0.00022,2]
[322571328,1713076247680,-275.53228015,0.00022,2]
[322571330,1713076247690,-272.2037,0.00022,2]
[322571558,1713076249929,-395.42098409,0.00022,2]
[322571560,1713076249938,-667.62468409,0.00022,2]
[322571562,1713076249948,-667.62468409,0.00022,2]
[322571564,1713076249957,-667.62468409,0.00022,2]
[322571566,1713076249966,-667.62468409,0.00022,2]
[322571568,1713076249975,-667.62468409,0.00022,2]
[322571570,1713076249985,-667.62468409,0.00022,2]
[322571572,1713076249995,-667.62468409,0.00022,2]
[322571574,1713076250005,-667.62468409,0.00022,2]
[322571576,1713076250014,-667.62468409,0.00022,2]
[322571578,1713076250023,-667.62468409,0.00022,2]
[322571580,1713076250033,-667.62468409,0.00022,2]
[322571582,1713076250044,-667.62468409,0.00022,2]
[322571584,1713076250054,-667.62468409,0.00022,2]
[322571586,1713076250064,-667.62468409,0.00022,2]
[322571588,1713076250074,-667.62468409,0.00022,2]
[322571590,1713076250084,-667.62468409,0.00022,2]
[322571592,1713076250093,-541.0,0.00025172,2]
[322571594,1713076250103,-541.0,0.00028172,2]
[322571596,1713076250113,-150.0,0.00029734,2]
[322571598,1713076250123,-150.0,0.00029746,2]
[322571600,1713076250132,-150.0,0.00029756,2]
[322571602,1713076250142,-150.0,0.00029757,2]
[322571604,1713076250152,-150.0,0.00029767,2]
[322571606,1713076250161,-150.0,0.00029774,2]
[322571608,1713076250170,-150.0,0.00029782,2]
[322571610,1713076250180,-150.0,0.00029825,2]
[322571612,1713076250190,-150.0,0.0002986,2]
[322571614,1713076250199,-150.0,0.00029877,2]
[322571616,1713076250208,-150.0,0.00029902,2]
[322571618,1713076250218,-150.0,0.00029907,2]
[322571620,1713076250228,-159.63879355,0.00029944,2]
[322571622,1713076250237,-150.0,0.00029957,2]
[322571624,1713076250246,-150.0,0.00029974,2]
[322571626,1713076250258,-150.0,0.00029986,2]
[322571628,1713076250268,-150.0,0.00029994,2]
[322571630,1713076250278,-150.0,0.00029997,2]
[322571631,1713076250289,-757.81102759,0.0003,2]
[322571633,1713076250299,-10762.62619114,0.0003,7]
[322571635,1713076250308,-19327.24766397,0.0003,4]
[322571636,1713076250319,-200.0,0.0003,7]
[322571638,1713076250330,-200.0,0.0003,7]
[322571640,1713076250340,-200.0,0.0003,7]
[322571642,1713076250350,-482.0,0.0003,14]
[322571644,1713076250362,-2970.07961376,0.0003,4]
[322571645,1713076250372,-150.0,0.0003,2]
[322571647,1713076250381,-207.0,0.0003,2]
[322571649,1713076250392,-70991.0878081,0.00030013,2]
[322571650,1713076250402,-167.0,0.00030033,2]
[322571652,1713076250414,-1250.0,0.000301,2]
[322571654,1713076250424,-157.041514,0.00030148,10]
[322571656,1713076250434,-180.0,0.00030258,2]
[322571673,1713076250648,-1000.0,0.000303,2]
[322571675,1713076250664,-600.0,0.00030303,10]
[322571677,1713076250674,-534.0,0.00030329,2]
[322571678,1713076250684,-937.0,0.00030329,2]
[322571680,1713076250694,-157.041514,0.00030348,11]
[322571682,1713076250704,-150.0,0.000304,2]
[322571684,1713076250714,-157.041514,0.00030548,11]
[322571685,1713076250723,-157.041514,0.00030748,11]
[322571687,1713076250733,-900.0,0.00030851,10]
[322571689,1713076250744,-503.42976236,0.00030851,10]
[322571691,1713076250754,-500.0,0.00030851,10]
[322571693,1713076250764,-150.0,0.000309,2]
[322571695,1713076250775,-167.0,0.00030909,2]
[322571697,1713076250786,-157.041514,0.00030948,14]
[322571698,1713076250795,-848.56,0.00031,2]
[322571700,1713076250805,-680.12,0.00031,2]
[322571702,1713076250814,-750.0,0.00031,3]
[322571704,1713076250824,-515.51,0.00031097,2]
[322571706,1713076250833,-157.041514,0.00031148,14]
[322571708,1713076250842,-532.285,0.00031172,2]
[322571710,1713076250853,-6519.59829957,0.000312,2]
[322571712,1713076250862,-3343.09,0.00031253,2]
[322571713,1713076250872,-193.22143059,0.00031342,30]
[322571715,1713076250881,-157.041514,0.00031348,14]
[322571717,1713076250890,-600.0,0.00031399,10]
[322571719,1713076250900,-281.22982841,0.000314,30]
[322571721,1713076250909,-150.0,0.000314,3]
[322571723,1713076250919,-18246.49238898,0.0003143,4]
[322571724,1713076250931,-193.22143059,0.00031452,30]
[322571726,1713076250941,-157.041514,0.00031548,15]
[322571728,1713076250951,-355.0,0.00031548,2]
[322571730,1713076250961,-311.639,0.00031548,2]
[322571732,1713076250970,-193.22143059,0.00031589,30]
[322571733,1713076250979,-2623.96,0.00031639,2]
[322571735,1713076250989,-177.79,0.00031644,2]
[322571737,1713076250998,-684.33,0.00031644,2]
[322571739,1713076251009,-534.0,0.00031699,2]
[322571741,1713076251018,-937.0,0.00031699,2]
[322571743,1713076251028,-2501.18,0.00031726,2]
[322571744,1713076251037,-193.22143059,0.00031726,30]
[322571746,1713076251047,-157.041514,0.00031748,15]
[322571748,1713076251057,-152.57,0.00031815,2]
[322571750,1713076251066,-193.22143059,0.00031863,30]
[322571752,1713076251075,-150.0,0.000319,3]
[322571754,1713076251084,-900.0,0.00031947,10]
[322571756,1713076251093,-500.0,0.00031947,10]
[322571758,1713076251103,-157.041514,0.00031948,15]
[322571759,1713076251112,-332.37940372,0.00032,4]
[322571761,1713076251122,-193.22143059,0.00032,30]
[322571763,1713076251131,-1501.88191145,0.00032,3]
[322571765,1713076251141,-217.0,0.00032,2]
[322571767,1713076251150,-193.22143059,0.00032137,30]
[322571769,1713076251160,-157.041514,0.00032148,16]
[322571771,1713076251169,-162.16,0.00032184,120]
[322571772,1713076251179,-414.71,0.0003222,2]
[322571774,1713076251189,-193.22143059,0.00032247,30]
[322571776,1713076251198,-255.75852467,0.00032298,4]
[322571778,1713076251207,-200.0,0.00032332,7]
[322571780,1713076251217,-157.041514,0.00032348,16]
[322571781,1713076251226,-193.22143059,0.00032384,30]
[322571783,1713076251235,-150.0,0.000324,3]
[322571785,1713076251244,-600.0,0.00032495,10]
[322571787,1713076251255,-193.22143059,0.00032521,30]
[322571789,1713076251265,-151.041513,0.00032548,16]
[322571791,1713076251275,-611.44133086,0.000326,20]
[322571793,1713076251289,-848.56,0.000326,2]
[322571795,1713076251298,-680.12,0.000326,2]
[322571796,1713076251308,-2190.86,0.00032603,2]
[322571798,1713076251318,-11766.68,0.00032603,2]
[322571800,1713076251329,-193.22143059,0.00032658,30]
[322571802,1713076251338,-364.0,0.000327,7]
[322571804,1713076251347,-151.041513,0.00032748,17]
[322571806,1713076251357,-193.22143059,0.00032795,30]
[322571808,1713076251367,-96676.9070058,0.00032874,3]
[322571809,1713076251376,-500.0,0.00032876,2]
[322571811,1713076251386,-500.0,0.00032876,2]
[322571813,1713076251396,-500.0,0.00032876,2]
[322571815,1713076251405,-500.0,0.00032876,2]
[322571817,1713076251415,-500.0,0.00032876,2]
[322571819,1713076251425,-500.0,0.00032876,2]
[322571820,1713076251434,-500.0,0.00032876,2]
[322571822,1713076251443,-500.0,0.00032876,2]
[322571824,1713076251453,-500.0,0.00032876,2]
[322571826,1713076251462,-500.0,0.00032876,2]
[322571828,1713076251471,-500.0,0.00032876,2]
[322571830,1713076251480,-500.0,0.00032876,2]
[322571831,1713076251489,-500.0,0.00032876,2]
[322571833,1713076251499,-500.0,0.00032876,2]
[322571835,1713076251508,-526.68811529,0.00032876,2]
[322571837,1713076251518,-37681.3,0.00032877,2]
[322571838,1713076251527,-150.0,0.00032877,2]
[322571840,1713076251536,-321.52,0.00032877,2]
[322571842,1713076251546,-53324.21,0.00032877,2]
[322571844,1713076251555,-150.0,0.00032877,30]
[322571845,1713076251565,-150.0,0.00032877,30]
[322571847,1713076251576,-150.0,0.00032877,30]
[322571849,1713076251585,-280.15,0.00032879,2]
[322571851,1713076251596,-280.15,0.00032879,2]
[322571853,1713076251605,-280.15,0.00032879,2]
[322571854,1713076251614,-280.15,0.00032879,2]
[322571856,1713076251623,-280.15,0.00032879,2]
[322571858,1713076251633,-280.15,0.00032879,2]
[322571860,1713076251642,-280.15,0.00032879,2]
[322571862,1713076251651,-280.15,0.00032879,2]
[322571863,1713076251660,-280.15,0.00032879,2]
[322571865,1713076251669,-280.15,0.00032879,2]
[322571867,1713076251678,-1244.5642523,0.0003288,2]
[322571869,1713076251687,-1244.5642523,0.0003288,2]
[322571870,1713076251697,-1244.5642523,0.0003288,2]
[322571872,1713076251707,-1244.5642523,0.0003288,2]
[322571874,1713076251716,-1244.5642523,0.0003288,2]
[322571876,1713076251726,-1244.5642523,0.0003288,2]
[322571878,1713076251736,-1244.5642523,0.0003288,2]
[322571879,1713076251746,-1244.5642523,0.0003288,2]
[322571881,1713076251758,-1244.5642523,0.0003288,2]
[322571883,1713076251768,-1244.5642523,0.0003288,2]
[322571884,1713076251779,-1244.5642523,0.0003288,2]
[322571885,1713076251788,-1244.5642523,0.0003288,2]
[322571886,1713076251798,-1244.5642523,0.0003288,2]
[322571887,1713076251808,-1244.5642523,0.0003288,2]
[322571888,1713076251817,-1244.5642523,0.0003288,2]
[322571889,1713076251827,-1244.5642523,0.0003288,2]
[322571890,1713076251839,-1244.5642523,0.0003288,2]
[322571891,1713076251848,-1244.5642523,0.0003288,2]
[322571892,1713076251858,-1244.5642523,0.0003288,2]
[322571893,1713076251867,-1245.06,0.0003288,2]
[322571894,1713076251877,-505.63003268,0.0003288,2]
[322571895,1713076251886,-505.63003268,0.0003288,2]
[322571897,1713076251895,-505.63003268,0.0003288,2]
[322571899,1713076251904,-505.63003268,0.0003288,2]
[322571901,1713076251913,-505.63003268,0.0003288,2]
[322571903,1713076251925,-505.63003268,0.0003288,2]
[322571905,1713076251934,-505.63003268,0.0003288,2]
[322571907,1713076251944,-505.63003268,0.0003288,2]
[322571908,1713076251954,-505.63003268,0.0003288,2]
[322571911,1713076251963,-505.63003268,0.0003288,2]
[322571913,1713076251974,-505.63003268,0.0003288,2]
[322571915,1713076251983,-505.63003268,0.0003288,2]
[322571917,1713076251992,-505.63003268,0.0003288,2]
[322571919,1713076252002,-505.63003268,0.0003288,2]
[322571920,1713076252011,-505.63003268,0.0003288,2]
[322571923,1713076252021,-505.63003268,0.0003288,2]
[322571925,1713076252031,-505.63003268,0.0003288,2]
[322571927,1713076252040,-505.63003268,0.0003288,2]
[322571929,1713076252049,-505.63003268,0.0003288,2]
[322571931,1713076252059,-506.13,0.0003288,2]
[322571933,1713076252069,-159.5308371,0.0003288,2]
[322571935,1713076252081,-159.5308371,0.0003288,2]
[322571937,1713076252092,-159.5308371,0.0003288,2]
[322571939,1713076252101,-159.5308371,0.0003288,2]
[322571941,1713076252110,-159.5308371,0.0003288,2]
[322571943,1713076252119,-159.5308371,0.0003288,2]
[322571945,1713076252130,-159.5308371,0.0003288,2]
[322571947,1713076252139,-159.5308371,0.0003288,2]
[322571949,1713076252149,-159.5308371,0.0003288,2]
[322571951,1713076252159,-159.5308371,0.0003288,2]
[322571953,1713076252168,-159.5308371,0.0003288,2]
[322571955,1713076252177,-160.03,0.0003288,2]
[322571957,1713076252187,-353.45864576,0.0003288,2]
[322571959,1713076252196,-353.45864576,0.0003288,2]
[322571961,1713076252205,-353.45864576,0.0003288,2]
[322571963,1713076252214,-353.45864576,0.0003288,2]
[322571965,1713076252224,-353.45864576,0.0003288,2]
[322571967,1713076252233,-353.45864576,0.0003288,2]
[322571969,1713076252243,-353.45864576,0.0003288,2]
[322571972,1713076252252,-353.45864576,0.0003288,2]
[322571974,1713076252261,-353.45864576,0.0003288,2]
[322571975,1713076252271,-353.45864576,0.0003288,2]
[322571978,1713076252284,-353.45864576,0.0003288,2]
[322571980,1713076252294,-353.45864576,0.0003288,2]
[322571982,1713076252303,-353.45864576,0.0003288,2]
[322571984,1713076252312,-353.45864576,0.0003288,2]
[322571986,1713076252322,-353.45864576,0.0003288,2]
[322571988,1713076252331,-353.45864576,0.0003288,2]
[322571990,1713076252340,-353.45864576,0.0003288,2]
[322571992,1713076252353,-353.45864576,0.0003288,2]
[322571994,1713076252365,-353.45864576,0.0003288,2]
[322571996,1713076252375,-353.95,0.0003288,2]
[322571998,1713076252385,-150.0,0.000329,3]
[322572000,1713076252395,-193.22143059,0.00032932,30]
[322572002,1713076252404,-173.0,0.0003294,18]
[322572004,1713076252413,-151.041513,0.00032948,17]
[322572006,1713076252423,-500.0,0.00033,2]
[322572008,1713076252432,-500.0,0.00033,2]
[322572010,1713076252441,-500.0,0.00033,2]
[322572013,1713076252451,-500.0,0.00033,2]
[322572015,1713076252461,-575.09,0.00033,2]
[322572017,1713076252471,-348.66,0.00033,2]
[322572019,1713076252481,-800.0,0.00033,3]
[322572021,1713076252490,-1717.887578,0.00033,2]
[322572023,1713076252501,-193.22143059,0.00033041,30]
[322572025,1713076252512,-900.0,0.00033043,10]
[322572027,1713076252522,-500.0,0.00033043,10]
[322572028,1713076252533,-534.0,0.00033068,2]
[322572031,1713076252542,-937.0,0.00033068,2]
[322572033,1713076252552,-151.041513,0.00033148,17]
[322572035,1713076252561,-163.78,0.00033165,2]
[322572037,1713076252570,-281.05,0.00033165,2]
[322572039,1713076252579,-193.22143059,0.00033178,30]
[322572041,1713076252589,-45000.0,0.0003333,5]
[322572043,1713076252598,-151.041513,0.00033348,18]
[322572045,1713076252608,-150.0,0.00033386,2]
[322572047,1713076252617,-1000.0,0.000334,7]
[322572049,1713076252628,-150.0,0.000334,3]
[322572051,1713076252638,-1000.0,0.000335,2]
[322572053,1713076252648,-1000.0,0.000335,7]
[322572055,1713076252658,-151.041513,0.00033548,18]
[322572057,1713076252667,-600.0,0.00033591,10]
[322572059,1713076252679,-1000.0,0.000336,2]
[322572061,1713076252688,-1000.0,0.000336,7]
[322572063,1713076252698,-3000.0,0.000336,2]
[322572065,1713076252708,-200.0,0.00033607,10]
[322572067,1713076252718,-500.0,0.00033607,10]
[322572069,1713076252728,-1000.0,0.00033611,15]
[322572071,1713076252737,-200.0,0.00033612,10]
[322572073,1713076252748,-500.0,0.00033612,10]
[322572075,1713076252758,-1000.0,0.00033614,15]
[322572077,1713076252768,-200.0,0.00033618,10]
[322572080,1713076252777,-1000.0,0.00033618,15]
[322572082,1713076252787,-500.0,0.00033618,10]
[322572084,1713076252796,-500.0,0.00033618,10]
[322572086,1713076252805,-1000.0,0.00033621,15]
[322572088,1713076252814,-200.0,0.00033623,10]
[322572090,1713076252823,-500.0,0.00033623,10]
[322572092,1713076252832,-1000.0,0.00033625,15]
[322572094,1713076252842,-200.0,0.00033628,10]
[322572096,1713076252851,-1000.0,0.00033628,15]
[322572098,1713076252860,-200.0,0.00033628,10]
[322572100,1713076252869,-500.0,0.00033628,10]
[322572102,1713076252878,-500.0,0.00033628,10]
[322572104,1713076252887,-3122.63778412,0.00033682,2]
[322572106,1713076252897,-1000.0,0.000337,2]
[322572108,1713076252906,-1000.0,0.000337,7]
[322572110,1713076252915,-150.0,0.00033742,2]
[322572112,1713076252925,-151.041513,0.00033748,18]
[322572114,1713076252934,-3071.93821597,0.00033761,2]
[322572116,1713076252944,-153.3438772,0.00033761,2]
[322572118,1713076252953,-791.34227455,0.00033761,2]
[322572120,1713076252962,-795.74929763,0.00033761,2]
[322572122,1713076252971,-385.9074976,0.00033777,2]
[322572124,1713076252980,-4515.9287175,0.00033777,2]
[322572126,1713076252990,-58047.6539492,0.00033777,2]
[322572128,1713076252999,-10864.5423342,0.00033777,2]
[322572130,1713076253010,-150.0,0.00033799,30]
[322572132,1713076253019,-150.0,0.00033799,30]
[322572134,1713076253028,-1000.0,0.000338,2]
[322572136,1713076253038,-33191.0,0.000338,3]
[322572138,1713076253047,-14848.51186397,0.000338,6]
[322572156,1713076253206,-298.341449,0.00022,2]
[322572158,1713076253218,-369.28323509,0.00022,2]
[322572160,1713076253227,-477.01778541,0.00022,2]
[322573537,1713076715625,-403.41457333,0.00020507,2]
[322573538,1713076715652,-839.4694,0.00020508,2]
[322573539,1713076715678,-161.47439017,0.00020699,2]
[322573540,1713076715704,-150.0,0.00020799,2]
[322573541,1713076715729,-1000.0,0.000208,2]
[322573542,1713076715754,-47445.6416365,0.000208,2]
[322573543,1713076780305,155.0,0.00021,5]
[322573553,1713076847450,155.0,0.0002,2]
[322573554,1713076853415,11863.17739734,0.000253,18]
[322573588,1713077433123,-419.52,0.00020694,2]
[322573589,1713077433147,-112.9538176,0.00020694,2]
[322573590,1713077433156,-8578.15680506,0.00020694,2]
[322573591,1713077433166,-3754.55085051,0.00020694,2]
[322573592,1713077433175,-527.71788685,0.00020695,2]
[322573593,1713077433188,-501.76730164,0.00020695,2]
[322573594,1713077433215,-1293.18,0.00020695,2]
[322573595,1713077433227,-690.0070126,0.00020695,2]
[322573616,1713077437538,-3228.83796738,0.00020695,2]
[322573617,1713077437548,-664.38292478,0.00020695,2]
[322573619,1713077437605,-74.61707522,0.00020695,2]
[322573620,1713077437614,-186.90415687,0.00020697,2]
[322573621,1713077437623,-162.42247467,0.00020798,2]
[322573622,1713077437632,-193.12935001,0.00020798,2]
[322573623,1713077437641,-39.82694328,0.00020798,2]
[322573624,1713077437902,-511.31311329,0.00020798,2]
[322573625,1713077437912,-91835.7340635,0.000208,2]
[322573626,1713077437922,-2619.0,0.000214,2]
[322573627,1713077437932,-308.7022,0.000219,2]
[322573628,1713077437942,-150.0,0.00022,2]
[322573629,1713077437951,-784.24043551,0.00022,2]
[322573630,1713077437960,-176.4602082,0.00022,2]
[322573631,1713077437969,-176.4602082,0.00022,2]
[322573633,1713077437979,-176.4602082,0.00022,2]
[322573634,1713077437989,-176.4602082,0.00022,2]
[322573637,1713077437999,-176.4602082,0.00022,2]
[322573638,1713077438010,-176.4602082,0.00022,2]
[322573640,1713077438019,-155.23602236,0.00022766,2]
[322573642,1713077438029,-176.4602082,0.00022951,2]
[322573645,1713077438038,-311.03,0.00022961,2]
[322573647,1713077438047,-550.0,0.00023,3]
[322573649,1713077438057,-176.4602082,0.00024025,2]
[322573651,1713077438066,-952.38443051,0.00024035,2]
[322573652,1713077438075,-365.67,0.00024035,2]
[322573653,1713077438085,-499.99,0.00024035,2]
[322573655,1713077438094,-250.0,0.00024371,2]
[322573656,1713077438103,-176.4602082,0.0002479,2]
[322573657,1713077438112,-176.4602082,0.0002479,2]
[322573660,1713077438122,-1998.95566924,0.000248,2]
[322573663,1713077438132,-150.0,0.00024904,2]
[322573665,1713077438141,-176.4602082,0.00024925,2]
[322573668,1713077438151,-176.4602082,0.00024925,2]
[322573670,1713077438161,-176.4602082,0.00024925,2]
[322573672,1713077438171,-176.4602082,0.00024925,2]
[322573674,1713077438181,-176.4602082,0.00024925,2]
[322573676,1713077438190,-176.4602082,0.00024925,2]
[322573678,1713077438200,-176.4602082,0.00024925,2]
[322573680,1713077438210,-9176.83411298,0.00024935,2]
[322573682,1713077438219,-2174.50434064,0.00024935,2]
[322573684,1713077438229,-150.99,0.00024935,2]
[322573686,1713077438238,-168.17,0.00024949,2]
[322573688,1713077438247,-176.4602082,0.0002498,2]
[322573690,1713077438258,-150.99,0.0002499,2]
[322573692,1713077438267,-176.4602082,0.0002499,2]
[322573694,1713077438276,-176.4602082,0.0002499,2]
[322573696,1713077438285,-563.08685838,0.00025,2]
[322573698,1713077438295,-173.8791187,0.00025,2]
[322573700,1713077438304,-155.0,0.00025,2]
[322573702,1713077438313,-2605.45039561,0.00025,2]
[322573704,1713077438323,-600.0,0.00025,3]
[322573706,1713077438334,-155.0,0.00025,2]
[322573707,1713077438343,-250.0,0.00025157,2]
[322573709,1713077438353,-176.4602082,0.00025188,2]
[322573711,1713077438362,-176.4602082,0.00025188,2]
[322573712,1713077438372,-176.4602082,0.00025188,2]
[322573713,1713077438381,-176.4602082,0.00025188,2]
[322573714,1713077438392,-176.4602082,0.00025188,2]
[322573715,1713077438403,-176.4602082,0.00025188,2]
[322573716,1713077438412,-176.4602082,0.00025188,2]
[322573717,1713077438422,-176.4602082,0.00025188,2]
[322573718,1713077438434,-176.4602082,0.00025188,2]
[322573719,1713077438445,-176.4602082,0.00025188,2]
[322573720,1713077438456,-176.4602082,0.00025188,2]
[322573721,1713077438466,-176.4602082,0.00025188,2]
[322573722,1713077438475,-176.4602082,0.00025188,2]
[322573723,1713077438493,-2296.535,0.00025198,2]
[322573724,1713077438539,-17438.3115,0.00025198,2]
[322573725,1713077438548,-176.4602082,0.00025199,2]
[322573726,1713077438558,-168.17,0.00025209,2]
[322573727,1713077438569,-311.03,0.00025225,2]
[322573728,1713077438578,-176.4602082,0.00025288,2]
[322573729,1713077438588,-176.4602082,0.00025288,2]
[322573730,1713077438597,-176.4602082,0.00025288,2]
[322573731,1713077438607,-176.4602082,0.00025288,2]
[322573732,1713077438617,-176.4602082,0.00025288,2]
[322573733,1713077438628,-176.4602082,0.00025288,2]
[322573734,1713077438639,-176.4602082,0.00025288,2]
[322573735,1713077438651,-176.4602082,0.00025288,2]
[322573736,1713077438664,-176.4602082,0.00025288,2]
[322573737,1713077438674,-176.4602082,0.00025288,2]
[322573738,1713077438684,-176.4602082,0.00025288,2]
[322573739,1713077438695,-176.4602082,0.00025288,2]
[322573740,1713077438706,-176.4602082,0.00025288,2]
[322573741,1713077438716,-176.4602082,0.00025288,2]
[322573742,1713077438726,-176.4602082,0.00025288,2]
[322573743,1713077438738,-176.4602082,0.00025288,2]
[322573744,1713077438748,-176.4602082,0.00025288,2]
[322573745,1713077438760,-176.4602082,0.00025288,2]
[322573746,1713077438771,-176.4602082,0.00025288,2]
[322573747,1713077438781,-176.4602082,0.00025288,2]
[322573748,1713077438791,-176.4602082,0.00025288,2]
[322573749,1713077438801,-176.4602082,0.00025288,2]
[322573750,1713077438811,-176.4602082,0.00025288,2]
[322573751,1713077438820,-176.4602082,0.00025288,2]
[322573752,1713077438830,-176.4602082,0.00025288,2]
[322573753,1713077438843,-176.4602082,0.00025288,2]
[322573754,1713077438853,-176.4602082,0.00025288,2]
[322573755,1713077438863,-176.4602082,0.00025288,2]
[322573756,1713077438873,-176.4602082,0.00025288,2]
[322573757,1713077438883,-176.4602082,0.00025288,2]
[322573758,1713077438893,-176.4602082,0.00025288,2]
[322573759,1713077438902,-176.4602082,0.00025288,2]
[322573760,1713077438913,-176.4602082,0.00025288,2]
[322573761,1713077438922,-176.4602082,0.00025288,2]
[322573762,1713077438931,-176.4602082,0.00025288,2]
[322573763,1713077438940,-176.4602082,0.00025288,2]
[322573764,1713077438950,-176.4602082,0.00025288,2]
[322573765,1713077438959,-176.4602082,0.00025288,2]
[322573766,1713077438968,-176.4602082,0.00025288,2]
[322573767,1713077438977,-176.4602082,0.00025288,2]
[322573768,1713077438987,-176.4602082,0.00025288,2]
[322573769,1713077438997,-176.4602082,0.00025288,2]
[322573770,1713077439008,-176.4602082,0.00025288,2]
[322573771,1713077439018,-176.4602082,0.00025288,2]
[322573772,1713077439027,-176.4602082,0.00025288,2]
[322573773,1713077439037,-176.4602082,0.00025288,2]
[322573774,1713077439046,-176.4602082,0.00025288,2]
[322573775,1713077439056,-176.4602082,0.00025288,2]
[322573776,1713077439065,-176.4602082,0.00025288,2]
[322573777,1713077439074,-176.4602082,0.00025288,2]